fUST/lending_fUST_20260128
["ID","MTS","AMOUNT","RATE_DAILY","PERIOD"]
[403784466,1769541015818,500.0,0.00035056,120]
[403784468,1769541031369,195.67,0.00035056,120]
[403784497,1769541032259,-300.0,0.00011642,2]
[403784499,1769541032270,-576.55,0.00011642,2]
[403784502,1769541032282,-7.45,0.00011642,2]
[403784504,1769541032292,-1200.0,0.00011642,2]
[403784506,1769541032303,-50000.0,0.00011643,2]
[403784508,1769541032313,-278.4496901,0.00011643,2]
[403784510,1769541032322,-500.0,0.00011643,2]
[403784512,1769541032332,-500.0,0.00011643,2]
[403784514,1769541032341,-500.0,0.00011643,2]
[403784517,1769541032350,-500.0,0.00011643,2]
[403784519,1769541032359,-500.0,0.00011643,2]
[403784521,1769541032369,-500.0,0.00011643,2]
[403784523,1769541032378,-500.0,0.00011643,2]
[403784525,1769541032387,-500.0,0.00011643,2]
[403784527,1769541032396,-500.0,0.00011643,2]
[403784529,1769541032405,-405.3186502,0.00011643,2]
[403784531,1769541032414,-500.0,0.00011643,2]
[403784533,1769541032423,-500.0,0.00011643,2]
[403784535,1769541032436,-500.0,0.00011643,2]
[403784537,1769541032445,-500.0,0.00011643,2]
[403784539,1769541032455,-500.0,0.00011643,2]
[403784541,1769541032463,-500.0,0.00011643,2]
[403784543,1769541032473,-500.0,0.00011643,2]
[403784545,1769541032482,-500.0,0.00011643,2]
[403784548,1769541032492,-500.0,0.00011643,2]
[403784550,1769541032501,-500.0,0.00011643,2]
[403784551,1769541032511,-500.0,0.00011643,2]
[403784553,1769541032520,-500.0,0.00011643,2]
[403784555,1769541032530,-341.13385957,0.00011643,2]
[403784557,1769541032540,-500.0,0.00011643,2]
[403784560,1769541032550,-500.0,0.00011643,2]
[403784562,1769541032559,-500.0,0.00011643,2]
[403784564,1769541032569,-500.0,0.00011643,2]
[403784566,1769541032579,-500.0,0.00011643,2]
[403784568,1769541032588,-500.0,0.00011643,2]
[403784570,1769541032598,-169.58733592,0.00011643,2]
[403784571,1769541032608,-500.0,0.00011643,2]
[403784572,1769541032619,-500.0,0.00011643,2]
[403784573,1769541032629,-500.0,0.00011643,2]
[403784574,1769541032640,-500.0,0.00011643,2]
[403784575,1769541032650,-500.0,0.00011643,2]
[403784576,1769541032660,-500.0,0.00011643,2]
[403784577,1769541032669,-500.0,0.00011643,2]
[403784578,1769541032680,-500.0,0.00011643,2]
[403784579,1769541032692,-500.0,0.00011643,2]
[403784580,1769541032702,-500.0,0.00011643,2]
[403784581,1769541032711,-500.0,0.00011643,2]
[403784582,1769541032721,-500.0,0.00011643,2]
[403784583,1769541032733,-500.0,0.00011643,2]
[403784584,1769541032742,-500.0,0.00011643,2]
[403784585,1769541032752,-500.0,0.00011643,2]
[403784586,1769541032763,-429.79361871,0.00011643,2]
[403784587,1769541032772,-396.93545321,0.00011644,2]
[403784588,1769541032782,-427.18195509,0.00011644,2]
[403784589,1769541032791,-500.0,0.00011646,2]
[403784590,1769541032801,-500.0,0.00011647,2]
[403784591,1769541032811,-662.04322033,0.00011883,2]
[403784592,1769541032820,-2367.16,0.000119,2]
[403784593,1769541032830,-300.0,0.00011983,2]
[403784594,1769541032840,-300.0,0.00011983,2]
[403784595,1769541032852,-300.0,0.00011983,2]
[403784596,1769541032862,-300.0,0.00011983,2]
[403784597,1769541032874,-300.0,0.00011983,2]
[403784598,1769541032884,-300.0,0.00011983,2]
[403784599,1769541032894,-300.0,0.00011983,2]
[403784600,1769541032903,-300.0,0.00011983,2]
[403784601,1769541032912,-300.0,0.00011983,2]
[403784602,1769541032922,-300.0,0.00011983,2]
[403784603,1769541032932,-300.0,0.00011983,2]
[403784604,1769541032941,-300.0,0.00011983,2]
[403784606,1769541032951,-300.0,0.00011983,2]
[403784607,1769541032960,-300.0,0.00011983,2]
[403784608,1769541032970,-300.0,0.00011983,2]
[403784610,1769541032979,-381.09904945,0.00012057,2]
[403784612,1769541032988,-600.0,0.00012222,2]
[403784614,1769541032997,-655.07002231,0.000123,2]
[403784620,1769541033041,500.0,0.00035056,120]
[403784738,1769541038309,-1712.08997769,0.000123,2]
[403784740,1769541038319,-151.0,0.000124,2]
[403784742,1769541038328,-2367.16,0.000126,2]
[403784744,1769541038337,-662.04322032,0.00012753,2]
[403784746,1769541038347,-420.0,0.00012785,2]
[403784747,1769541038356,-1680.0,0.00012806,2]
[403784749,1769541038366,-2367.16,0.00013,2]
[403784752,1769541038378,-151.0,0.000132,2]
[403784754,1769541038388,-500.0,0.00013273,2]
[403784755,1769541038397,-500.0,0.00013273,2]
[403784757,1769541038407,-500.0,0.00013273,2]
[403784759,1769541038416,-500.0,0.00013273,2]
[403784761,1769541038425,-500.0,0.00013273,2]
[403784763,1769541038435,-500.0,0.00013273,2]
[403784765,1769541038444,-500.0,0.00013273,2]
[403784767,1769541038453,-500.0,0.00013273,2]
[403784769,1769541038462,-500.0,0.00013273,2]
[403784771,1769541038471,-500.0,0.00013273,2]
[403784773,1769541038480,-284.04326702,0.00013273,2]
[403784775,1769541038489,-496.25522563,0.00013273,2]
[403784777,1769541038498,-500.0,0.00013273,2]
[403784779,1769541038507,-500.0,0.00013273,2]
[403784781,1769541038516,-500.0,0.00013273,2]
[403784783,1769541038525,-500.0,0.00013273,2]
[403784785,1769541038535,-500.0,0.00013273,2]
[403784786,1769541038543,-500.0,0.00013273,2]
[403784788,1769541038553,-500.0,0.00013273,2]
[403784790,1769541038562,-358.94419256,0.00013273,2]
[403784792,1769541038571,-500.0,0.00013273,2]
[403784794,1769541038580,-500.0,0.00013273,2]
[403784796,1769541038589,-500.0,0.00013273,2]
[403784798,1769541038599,-500.0,0.00013273,2]
[403784800,1769541038608,-500.0,0.00013273,2]
[403784802,1769541038617,-500.0,0.00013273,2]
[403784804,1769541038628,-500.0,0.00013273,2]
[403784806,1769541038637,-500.0,0.00013273,2]
[403784808,1769541038649,-500.0,0.00013273,2]
[403784810,1769541038659,-500.0,0.00013273,2]
[403784812,1769541038669,-500.0,0.00013273,2]
[403784814,1769541038681,-500.0,0.00013273,2]
[403784816,1769541038694,-500.0,0.00013273,2]
[403784818,1769541038705,-500.0,0.00013273,2]
[403784820,1769541038715,-2367.16,0.000134,2]
[403784822,1769541038724,-720.0,0.00013444,2]
[403784824,1769541038735,-501.23,0.00013573,2]
[403784826,1769541038746,-582.52,0.00013599,2]
[403784828,1769541038756,-219.35,0.00013599,2]
[403784830,1769541038767,-219.35,0.00013599,2]
[403784832,1769541038777,-219.35,0.00013599,2]
[403784834,1769541038786,-219.35,0.00013599,2]
[403784836,1769541038795,-219.35,0.00013599,2]
[403784837,1769541038805,-219.35,0.00013599,2]
[403784839,1769541038815,-219.33,0.00013599,2]
[403784841,1769541038824,-662.04322032,0.00013624,2]
[403784843,1769541038833,-468.38383479,0.00013644,2]
[403784845,1769541038844,-201.23226476,0.00013673,2]
[403784847,1769541038854,-300.0,0.00013673,2]
[403784849,1769541038863,-500.0,0.00013698,2]
[403784851,1769541038873,-500.0,0.00013698,2]
[403784853,1769541038882,-500.0,0.00013698,2]
[403784855,1769541038893,-500.0,0.00013698,2]
[403784857,1769541038903,-500.0,0.00013698,2]
[403784859,1769541038912,-500.0,0.00013698,2]
[403784861,1769541038921,-500.0,0.00013698,2]
[403784863,1769541038931,-500.0,0.00013698,2]
[403784865,1769541038940,-500.0,0.00013698,2]
[403784867,1769541038950,-500.0,0.00013698,2]
[403784868,1769541038959,-500.0,0.00013698,2]
[403784870,1769541038969,-500.0,0.00013698,2]
[403784872,1769541038979,-500.0,0.00013698,2]
[403784874,1769541038988,-500.0,0.00013698,2]
[403784876,1769541038998,-500.0,0.00013698,2]
[403784878,1769541039011,-500.0,0.00013698,2]
[403784880,1769541039023,-500.0,0.00013698,2]
[403784882,1769541039033,-500.0,0.00013698,2]
[403784884,1769541039042,-500.0,0.00013698,2]
[403784886,1769541039051,-500.0,0.00013698,2]
[403784887,1769541039060,-343.7720368,0.00013698,2]
[403784889,1769541039070,-515.45788341,0.00013698,2]
[403784891,1769541039079,-500.0,0.00013698,2]
[403784893,1769541039089,-500.0,0.00013698,2]
[403784895,1769541039099,-500.0,0.00013698,2]
[403784915,1769541039280,-500.0,0.00013698,2]
[403784918,1769541039291,-500.0,0.00013698,2]
[403784920,1769541039301,-500.0,0.00013698,2]
[403784921,1769541039310,-500.0,0.00013698,2]
[403784923,1769541039320,-500.0,0.00013698,2]
[403784925,1769541039330,-500.0,0.00013698,2]
[403784927,1769541039340,-500.0,0.00013698,2]
[403784929,1769541039349,-500.0,0.00013698,2]
[403784931,1769541039359,-500.0,0.00013698,2]
[403784933,1769541039368,-500.0,0.00013698,2]
[403784935,1769541039381,-500.0,0.00013698,2]
[403784937,1769541039390,-500.0,0.00013698,2]
[403784939,1769541039399,-500.0,0.00013698,2]
[403784941,1769541039409,-500.0,0.00013698,2]
[403784943,1769541039418,-500.0,0.00013698,2]
[403784945,1769541039427,-500.0,0.00013698,2]
[403784947,1769541039436,-500.0,0.00013698,2]
[403784949,1769541039445,-500.0,0.00013698,2]
[403784951,1769541039458,-483.90913431,0.00013698,2]
[403784953,1769541039468,-500.0,0.00013698,2]
[403784955,1769541039477,-500.0,0.00013698,2]
[403784957,1769541039486,-500.0,0.00013698,2]
[403784959,1769541039495,-500.0,0.00013698,2]
[403784960,1769541039505,-527.43989334,0.00013698,2]
[403784962,1769541039515,-500.0,0.00013698,2]
[403784964,1769541039524,-500.0,0.00013698,2]
[403784966,1769541039533,-500.0,0.00013698,2]
[403784968,1769541039543,-1000.0,0.00013698,2]
[403784970,1769541039557,-580.78992406,0.00013698,2]
[403784972,1769541039567,-500.0,0.00013698,2]
[403784974,1769541039577,-500.0,0.00013698,2]
[403784976,1769541039586,-500.0,0.00013698,2]
[403784978,1769541039595,-275.21574729,0.00013698,2]
[403784980,1769541039606,-186.52448351,0.00013698,2]
[403784981,1769541039615,-923.09,0.00013698,2]
[403784983,1769541039626,-923.09,0.00013698,2]
[403784985,1769541039635,-923.09,0.00013698,2]
[403784987,1769541039644,-923.09,0.00013698,2]
[403784989,1769541039654,-923.09,0.00013698,2]
[403784991,1769541039664,-923.09,0.00013698,2]
[403784993,1769541039673,-923.09,0.00013698,2]
[403784995,1769541039688,-923.09,0.00013698,2]
[403784997,1769541039698,-923.09,0.00013698,2]
[403784999,1769541039709,-923.09,0.00013698,2]
[403785001,1769541039718,-923.09,0.00013698,2]
[403785003,1769541039730,-923.09,0.00013698,2]
[403785005,1769541039739,-923.09,0.00013698,2]
[403785007,1769541039748,-923.09,0.00013698,2]
[403785009,1769541039758,-923.09,0.00013698,2]
[403785011,1769541039769,-923.09,0.00013698,2]
[403785013,1769541039778,-923.09,0.00013698,2]
[403785015,1769541039787,-923.09,0.00013698,2]
[403785017,1769541039796,-923.09,0.00013698,2]
[403785019,1769541039805,-923.09,0.00013698,2]
[403785021,1769541039814,-923.09,0.00013698,2]
[403785023,1769541039823,-923.09,0.00013698,2]
[403785025,1769541039832,-923.09,0.00013698,2]
[403785027,1769541039843,-923.29418364,0.00013698,2]
[403785029,1769541039853,-582.521614,0.00013699,2]
[403785031,1769541039862,-500.0,0.00013699,2]
[403785033,1769541039872,-194.72932748,0.00013699,2]
[403785035,1769541039883,-500.0,0.00013699,2]
[403785037,1769541039892,-160.26500187,0.00013699,2]
[403785039,1769541039903,-500.0,0.00013699,2]
[403785041,1769541039912,-500.0,0.00013699,2]
[403785043,1769541039922,-500.56709487,0.00013699,2]
[403785045,1769541039931,-500.24926867,0.00013699,2]
[403785047,1769541039941,-501.93006265,0.00013699,2]
[403785049,1769541039951,-500.0,0.00013699,2]
[403785051,1769541039960,-299.9295039,0.00013699,2]
[403785054,1769541039980,-502.14185001,0.00013699,2]
[403785057,1769541039991,-526.45505483,0.00013699,2]
[403785059,1769541040001,-165.58700471,0.00013699,2]
[403785061,1769541040011,-500.0,0.00013699,2]
[403785063,1769541040020,-500.0,0.00013699,2]
[403785065,1769541040031,-500.0,0.00013699,2]
[403785067,1769541040040,-500.0,0.00013699,2]
[403785069,1769541040050,-500.0,0.00013699,2]
[403785071,1769541040059,-507.6640978,0.00013699,2]
[403785073,1769541040069,-500.0,0.00013699,2]
[403785075,1769541040079,-160.98586548,0.00013699,2]
[403785077,1769541040088,-500.0,0.00013699,2]
[403785079,1769541040098,-500.0,0.00013699,2]
[403785081,1769541040108,-500.0,0.00013699,2]
[403785083,1769541040118,-160.67610577,0.00013699,2]
[403785085,1769541040129,-500.0,0.00013699,2]
[403785087,1769541040139,-500.0,0.00013699,2]
[403785089,1769541040149,-500.65001385,0.00013699,2]
[403785091,1769541040159,-500.0,0.00013699,2]
[403785093,1769541040169,-302.32459409,0.00013699,2]
[403785095,1769541040179,-612.89276168,0.00013699,2]
[403785097,1769541040189,-158.03248936,0.00013699,2]
[403785099,1769541040198,-462.16420988,0.00013699,2]
[403785101,1769541040208,-500.0,0.00013699,2]
[403785103,1769541040219,-500.0,0.00013699,2]
[403785105,1769541040228,-500.0,0.00013699,2]
[403785107,1769541040238,-500.0,0.00013699,2]
[403785109,1769541040247,-500.81049976,0.00013699,2]
[403785111,1769541040257,-160.25817065,0.00013699,2]
[403785113,1769541040267,-500.0,0.00013699,2]
[403785115,1769541040276,-500.0,0.00013699,2]
[403785117,1769541040286,-158.38045043,0.00013699,2]
[403785119,1769541040296,-500.0,0.00013699,2]
[403785121,1769541040305,-500.0,0.00013699,2]
[403785123,1769541040315,-500.0,0.00013699,2]
[403785124,1769541040325,-500.0,0.00013699,2]
[403785125,1769541040334,-500.0,0.00013699,2]
[403785126,1769541040343,-500.2910062,0.00013699,2]
[403785127,1769541040353,-500.0,0.00013699,2]
[403785128,1769541040362,-500.0,0.00013699,2]
[403785129,1769541040372,-567.35253141,0.00013699,2]
[403785130,1769541040382,-500.51551222,0.00013699,2]
[403785131,1769541040392,-500.69178235,0.00013699,2]
[403785132,1769541040401,-500.0,0.00013699,2]
[403785133,1769541040411,-500.0,0.00013699,2]
[403785134,1769541040420,-500.0,0.00013699,2]
[403785135,1769541040430,-500.0,0.00013699,2]
[403785136,1769541040440,-500.0,0.00013699,2]
[403785137,1769541040449,-158.80345848,0.00013699,2]
[403785138,1769541040459,-500.0,0.00013699,2]
[403785139,1769541040468,-400.38622524,0.00013699,2]
[403785140,1769541040477,-638.73037181,0.00013699,2]
[403785141,1769541040487,-500.0,0.00013699,2]
[403785142,1769541040497,-500.0,0.00013699,2]
[403785143,1769541040507,-500.0,0.00013699,2]
[403785144,1769541040517,-500.0,0.00013699,2]
[403785145,1769541040526,-500.0,0.00013699,2]
[403785146,1769541040536,-158.90561139,0.00013699,2]
[403785147,1769541040546,-500.0,0.00013699,2]
[403785148,1769541040555,-500.0,0.00013699,2]
[403785149,1769541040564,-500.0,0.00013699,2]
[403785150,1769541040574,-500.33960277,0.00013699,2]
[403785151,1769541040583,-500.0,0.00013699,2]
[403785152,1769541040592,-500.0,0.00013699,2]
[403785153,1769541040602,-500.71917519,0.00013699,2]
[403785154,1769541040611,-301.32592677,0.00013699,2]
[403785155,1769541040621,-500.0,0.00013699,2]
[403785156,1769541040632,-526.86363123,0.00013699,2]
[403785157,1769541040641,-500.0,0.00013699,2]
[403785158,1769541040651,-164.19123008,0.00013699,2]
[403785159,1769541040660,-525.37478737,0.00013699,2]
[403785160,1769541040669,-500.0,0.00013699,2]
[403785161,1769541040680,-500.74660917,0.00013699,2]
[403785162,1769541040689,-152.58064698,0.00013699,2]
[403785163,1769541040700,-536.5376944,0.00013699,2]
[403785164,1769541040709,-500.0,0.00013699,2]
[403785166,1769541040718,-500.0,0.00013699,2]
[403785168,1769541040729,-500.0,0.00013699,2]
[403785170,1769541040738,-500.0,0.00013699,2]
[403785173,1769541040748,-500.0,0.00013699,2]
[403785175,1769541040759,-500.0,0.00013699,2]
[403785176,1769541040769,-500.18246026,0.00013699,2]
[403785179,1769541040779,-500.0,0.00013699,2]
[403785181,1769541040788,-173.92029318,0.00013699,2]
[403785183,1769541040797,-500.36944659,0.00013699,2]
[403785185,1769541040806,-308.60459309,0.00013699,2]
[403785187,1769541040815,-349.02717716,0.00013699,2]
[403785188,1769541040825,-2367.16,0.000138,2]
[403785190,1769541040834,-694.17,0.0001382,2]
[403785192,1769541040843,-976.7197482,0.00013821,2]
[403785194,1769541040852,-500.0,0.00013821,2]
[403785196,1769541040861,-1001.82473873,0.00013821,2]
[403785198,1769541040871,-1000.0,0.00013821,2]
[403785200,1769541040881,-1014.80636698,0.00013821,2]
[403785202,1769541040891,-1000.0,0.00013821,2]
[403785204,1769541040900,-1000.0,0.00013821,2]
[403785206,1769541040909,-1000.0,0.00013821,2]
[403785208,1769541040918,-166.79022655,0.00013821,2]
[403785210,1769541040928,-1000.0,0.00013821,2]
[403785212,1769541040938,-1000.0,0.00013821,2]
[403785215,1769541040948,-1000.0,0.00013821,2]
[403785217,1769541040957,-1000.0,0.00013821,2]
[403785219,1769541040967,-1000.0,0.00013821,2]
[403785221,1769541040976,-1000.0,0.00013821,2]
[403785223,1769541040986,-1000.0,0.00013821,2]
[403785225,1769541040995,-1000.0,0.00013821,2]
[403785227,1769541041003,-444.22626758,0.00013821,2]
[403785229,1769541041013,-1000.0,0.00013821,2]
[403785231,1769541041022,-302.08825533,0.00013821,2]
[403785233,1769541041031,-1000.0,0.00013821,2]
[403785235,1769541041041,-1000.0,0.00013821,2]
[403785237,1769541041050,-1000.00000009,0.00013821,2]
[403785239,1769541041060,-1000.0,0.00013821,2]
[403785240,1769541041069,-1000.0,0.00013821,2]
[403785242,1769541041078,-1000.0,0.00013821,2]
[403785244,1769541041087,-1000.0,0.00013821,2]
[403785246,1769541041096,-488.50652582,0.00013821,2]
[403785248,1769541041106,-1000.0,0.00013821,2]
[403785250,1769541041114,-151.0,0.000139,2]
[403785252,1769541041123,-694.17,0.00014005,2]
[403785254,1769541041136,-694.17,0.00014005,2]
[403785256,1769541041146,-587.0,0.0001404,2]
[403785258,1769541041156,-1342.0,0.00014087,2]
[403785260,1769541041164,-694.17,0.00014148,2]
[403785262,1769541041174,-2367.16,0.000142,2]
[403785264,1769541041184,-600.0,0.00014221,2]
[403785266,1769541041194,-694.17,0.00014246,2]
[403785268,1769541041203,-1000.0,0.00014247,2]
[403785270,1769541041212,-1000.0,0.00014247,2]
[403785272,1769541041222,-1117.40899688,0.00014247,2]
[403785274,1769541041233,-1000.0,0.00014247,2]
[403785277,1769541041242,-1000.0,0.00014247,2]
[403785278,1769541041252,-1000.0,0.00014247,2]
[403785280,1769541041261,-844.14797869,0.00014247,2]
[403785282,1769541041270,-1001.21829847,0.00014247,2]
[403785284,1769541041280,-1000.0,0.00014247,2]
[403785286,1769541041290,-1000.0,0.00014247,2]
[403785288,1769541041299,-1000.0,0.00014247,2]
[403785290,1769541041308,-501.06198753,0.00014247,2]
[403785292,1769541041317,-610.42597811,0.00014247,2]
[403785293,1769541041326,-348.473489,0.00014247,2]
[403785294,1769541041336,-474.23438198,0.00014247,2]
[403785295,1769541041345,-1000.0,0.00014247,2]
[403785296,1769541041355,-1000.0,0.00014247,2]
[403785297,1769541041364,-498.54806363,0.00014247,2]
[403785298,1769541041374,-1000.0,0.00014247,2]
[403785299,1769541041384,-1000.0,0.00014247,2]
[403785300,1769541041393,-1000.89619199,0.00014247,2]
[403785301,1769541041403,-1000.0,0.00014247,2]
[403785302,1769541041412,-1000.0,0.00014247,2]
[403785303,1769541041421,-1000.0,0.00014247,2]
[403785304,1769541041430,-603.02448987,0.00014247,2]
[403785305,1769541041440,-1000.0,0.00014247,2]
[403785306,1769541041450,-1000.0,0.00014247,2]
[403785307,1769541041459,-1000.0,0.00014247,2]
[403785308,1769541041468,-694.17,0.00014248,2]
[403785309,1769541041476,-694.17,0.00014368,2]
[403785310,1769541041486,-440.12198797,0.00014368,2]
[403785311,1769541041495,-1000.0,0.00014368,2]
[403785312,1769541041505,-1500.0,0.00014368,2]
[403785313,1769541041514,-1500.0,0.00014368,2]
[403785314,1769541041523,-1500.0,0.00014368,2]
[403785315,1769541041532,-1500.0,0.00014368,2]
[403785316,1769541041541,-1500.0,0.00014368,2]
[403785317,1769541041551,-1145.13012888,0.00014368,2]
[403785318,1769541041561,-1000.0,0.00014368,2]
[403785319,1769541041570,-500.0,0.00014368,2]
[403785320,1769541041580,-1500.0,0.00014368,2]
[403785321,1769541041589,-1464.54701019,0.00014368,2]
[403785322,1769541041598,-1500.0,0.00014368,2]
[403785323,1769541041609,-1500.0,0.00014368,2]
[403785324,1769541041618,-1500.0,0.00014368,2]
[403785325,1769541041629,-1500.0,0.00014368,2]
[403785326,1769541041641,-1500.0,0.00014368,2]
[403785327,1769541041652,-1504.79261489,0.00014368,2]
[403785328,1769541041662,-694.17,0.00014448,2]
[403785329,1769541041671,-662.04322032,0.00014494,2]
[403785330,1769541041686,-2367.16,0.000145,2]
[403785331,1769541041696,-694.17,0.00014648,2]
[403785332,1769541041706,-151.0,0.000147,2]
[403785333,1769541041716,-151.0,0.000147,2]
[403785334,1769541041726,-900.0,0.00014768,2]
[403785335,1769541041736,-864.0,0.00014788,2]
[403785336,1769541041746,-1500.0,0.00014795,2]
[403785337,1769541041757,-175.70742984,0.00014795,2]
[403785338,1769541041766,-500.0,0.00014795,2]
[403785339,1769541041776,-1000.0,0.00014795,2]
[403785340,1769541041785,-1500.0,0.00014795,2]
[403785341,1769541041796,-1500.0,0.00014795,2]
[403785342,1769541041805,-1500.0,0.00014795,2]
[403785343,1769541041816,-2367.16,0.000149,2]
[403785344,1769541041826,-694.17,0.00014916,2]
[403785345,1769541041835,-500.0,0.00014916,2]
[403785346,1769541041848,-1000.0,0.00014916,2]
[403785347,1769541041858,-1000.0,0.00014916,2]
[403785348,1769541041867,-2000.0,0.00014916,2]
[403785349,1769541041878,-2000.0,0.00014916,2]
[403785350,1769541041887,-2000.0,0.00014916,2]
[403785351,1769541041896,-2000.0,0.00014916,2]
[403785352,1769541041908,-2000.0,0.00014916,2]
[403785353,1769541041918,-500.0,0.00014916,2]
[403785354,1769541041927,-2000.0,0.00014916,2]
[403785355,1769541041936,-57939.62754533,0.0001499,2]
[403785356,1769541041946,-201.59123142,0.00015068,2]
[403785357,1769541041955,-151.0,0.000151,2]
[403785358,1769541041965,-2367.16,0.000153,2]
[403785359,1769541041974,-900.0,0.00015316,2]
[403785360,1769541041983,-10000.0,0.00015342,2]
[403785361,1769541041992,-10000.0,0.00015342,2]
[403785362,1769541042002,-10000.0,0.00015342,2]
[403785363,1769541042011,-1500.0,0.00015342,2]
[403785364,1769541042021,-662.04322032,0.00015364,2]
[403785365,1769541042031,-823.0,0.00015418,2]
[403785366,1769541042040,-10000.0,0.00015442,2]
[403785367,1769541042049,-10000.3,0.00015442,2]
[403785368,1769541042059,-9999.5,0.00015442,2]
[403785369,1769541042068,-500.0,0.00015464,2]
[403785370,1769541042077,-500.0,0.00015464,2]
[403785371,1769541042086,-2107.98000005,0.00015464,2]
[403785372,1769541042095,-1500.0,0.00015464,2]
[403785373,1769541042104,-1000.0,0.00015464,2]
[403785374,1769541042113,-1500.0,0.00015464,2]
[403785375,1769541042122,-151.0,0.000155,2]
[403785376,1769541042135,-500.0,0.0001555,2]
[403785377,1769541042144,-250.0,0.00015562,2]
[403785379,1769541042153,-151.0,0.000156,2]
[403785381,1769541042161,-539.83221637,0.00015644,2]
[403785383,1769541042170,-2367.16,0.000157,2]
[403785384,1769541042179,-26646.7941763,0.00016024,2]
[403785386,1769541042188,-2367.16,0.000161,2]
[403785388,1769541042197,-151.0,0.000162,2]
[403785390,1769541042206,-1000.0,0.00016267,2]
[403785391,1769541042216,-500.0,0.00016369,2]
[403785393,1769541042225,-2367.16,0.000164,2]
[403785394,1769541042235,-2367.16,0.000168,2]
[403785395,1769541042244,-1072.0,0.00016932,2]
[403785397,1769541042253,-151.0,0.00017,2]
[403785398,1769541042263,-2367.16,0.000172,2]
[403785399,1769541042271,-500.0,0.0001723,2]
[403785400,1769541042281,-303.81,0.0001731,2]
[403785401,1769541042290,-694.17,0.00017549,2]
[403785402,1769541042299,-2367.16,0.000176,2]
[403785403,1769541042309,-611.28059795,0.00017644,2]
[403785404,1769541042318,-151.0,0.000178,2]
[403785405,1769541042327,-1041.66666667,0.00017825,2]
[403785406,1769541042337,-1000.0,0.00017894,2]
[403785407,1769541042346,-244.0,0.00017894,2]
[403785408,1769541042355,-2367.16,0.00018,2]
[403785409,1769541042365,-500.0,0.00018137,2]
[403785410,1769541042374,-2367.16,0.000183,2]
[403785411,1769541042385,-320.0,0.000184,2]
[403785412,1769541042395,-151.0,0.000185,2]
[403785413,1769541042404,-260.8713723,0.0001863,2]
[403785414,1769541042412,-2367.16,0.000187,2]
[403785415,1769541042422,-9177.091232,0.000187,7]
[403785416,1769541042432,-607.62,0.00018884,2]
[403785417,1769541042440,-303.10001603,0.000189,2]
[403785418,1769541042450,-303.10001603,0.00019089,2]
[403785419,1769541042458,-500.0,0.00019091,2]
[403785421,1769541042467,-2367.16,0.000191,2]
[403785423,1769541042476,-303.10001603,0.00019278,2]
[403785425,1769541042485,-694.17,0.00019299,2]
[403785427,1769541042494,-321.72,0.000193,2]
[403785429,1769541042503,-16820.15,0.000193,2]
[403785445,1769541042644,-171.22,0.000193,2]
[403785447,1769541042653,-6962.41,0.000193,2]
[403785449,1769541042663,-167.96,0.000193,2]
[403785451,1769541042671,-694.17,0.00019398,2]
[403785453,1769541042681,-694.17,0.00019398,2]